bitfinex/quotes_BTCUSD_20251120
["timestamp","ask_amount","ask_price","bid_price","bid_amount"]
[1763606125021,0.01080228,92573.0,92568.0,0.22728136]
[1763606125223,0.22682417,92583.0,92573.0,0.01080228]
[1763606125371,0.0199603,92590.0,92583.0,0.22682149]
[1763606125581,0.05210249,92589.0,92585.0,0.01080088]
[1763606126004,0.05210249,92589.0,92586.0,0.01080076]
[1763606126212,0.05210249,92590.0,92587.0,0.11080065]
[1763606126727,0.05210249,92594.0,92590.0,0.0108003]
[1763606126948,0.05210249,92594.0,92591.0,0.01080018]
[1763606127478,0.0107996,92596.0,92592.0,0.01080006]
[1763606127901,0.01079995,92593.0,92592.0,0.1]
[1763606128312,0.24213902,92593.0,92592.0,0.1]
[1763606128515,0.26540902,92593.0,92592.0,0.1]
[1763606128719,0.26540902,92593.0,92592.0,0.2]
[1763606129353,0.26840902,92593.0,92592.0,0.2]
[1763606129990,0.24513902,92593.0,92592.0,0.2]
[1763606130188,0.22979902,92593.0,92592.0,0.2]
[1763606130403,0.006,92593.0,92592.0,0.2]
[1763606131192,0.006,92593.0,92592.0,0.43139138]
[1763606131652,0.006,92593.0,92592.0,0.2]
[1763606131778,0.22199904,92593.0,92592.0,0.2]
[1763606131974,0.23713904,92593.0,92592.0,0.2]
[1763606132535,0.26021904,92593.0,92592.0,0.2]
[1763606134392,0.23713904,92593.0,92592.0,0.2]
[1763606134594,0.26021904,92593.0,92592.0,0.2]
[1763606135215,0.23713904,92593.0,92592.0,0.2]
[1763606135422,0.22199904,92593.0,92592.0,0.2]
[1763606136230,0.23713904,92593.0,92592.0,0.2]
[1763606138249,0.31232153,92593.0,92592.0,0.2]
[1763606138546,0.63532153,92593.0,92592.0,0.2]
[1763606138980,0.63532153,92593.0,92592.0,0.1]
[1763606139424,0.63232153,92593.0,92592.0,0.1]
[1763606139863,0.63232153,92593.0,92592.0,0.103]
[1763606140636,0.62932153,92593.0,92592.0,0.103]
[1763606142418,0.62932153,92593.0,92568.0,0.0004231]
[1763606142419,0.062905,92571.0,92568.0,0.0004231]
[1763606142677,0.61872754,92569.0,92568.0,0.0004231]
[1763606143086,0.64180754,92569.0,92568.0,0.0004231]
[1763606144323,0.64180754,92569.0,92568.0,0.1004231]
[1763606144957,0.05210249,92569.0,92568.0,0.1004231]
[1763606145203,0.05210249,92569.0,92568.0,0.1387931]
[1763606145393,0.05210249,92569.0,92568.0,0.1154431]
[1763606145703,0.05210249,92569.0,92568.0,0.1004231]
[1763606146199,0.05210249,92569.0,92568.0,0.2004231]
[1763606146543,0.02323146,92580.0,92574.0,0.21604267]
[1763606146761,0.01080135,92581.0,92579.0,0.00833]
[1763606146961,0.21602267,92583.0,92579.0,0.00833]
[1763606147162,0.01080111,92583.0,92579.0,0.00833]
[1763606147362,0.25382967,92582.0,92579.0,0.00833]
[1763606147566,0.22682659,92582.0,92579.0,0.00833]
[1763606147812,0.21602937,92580.0,92579.0,0.00833]
[1763606147984,0.21603638,92577.0,92576.0,0.01151]
[1763606149106,0.21603638,92577.0,92576.0,0.11151]
[1763606149537,0.21603455,92578.0,92576.0,0.11151]
[1763606149743,0.01080158,92579.0,92576.0,0.11151]
[1763606150082,0.05210249,92584.0,92579.0,0.01080158]
[1763606150458,0.01080076,92586.0,92581.0,0.01080135]
[1763606150609,0.01080123,92582.0,92579.0,0.01502]
[1763606150833,0.01080146,92580.0,92577.0,0.1]
[1763606151044,0.21603171,92579.0,92578.0,3.0]
[1763606151510,0.01080123,92582.0,92581.0,0.003]
[1763606151707,0.06290314,92587.0,92582.0,0.01080123]
[1763606151985,0.06290314,92587.0,92582.0,0.02582123]
[1763606152160,0.06290314,92587.0,92583.0,0.01080111]
[1763606152319,0.05210249,92587.0,92583.0,0.01080111]
[1763606152518,0.05210249,92587.0,92584.0,0.010801]
[1763606152719,0.01080088,92585.0,92581.0,0.00516]
[1763606152948,0.21602237,92583.0,92581.0,0.00516]
[1763606153283,0.010801,92584.0,92581.0,0.00516]
[1763606153942,0.010801,92584.0,92581.0,0.00816]
[1763606154169,0.010801,92584.0,92581.0,0.00516]
[1763606154369,0.010801,92584.0,92582.0,0.1]
[1763606154627,0.010801,92584.0,92583.0,0.003]
[1763606154816,0.01080088,92585.0,92583.0,0.003]
[1763606155002,0.03780309,92585.0,92582.0,0.1]
[1763606155227,0.02700221,92585.0,92582.0,0.42682373]
[1763606155399,0.02700221,92585.0,92584.0,0.23104004]
[1763606155600,0.05210249,92587.0,92584.0,0.24184104]
[1763606155807,0.02308,92605.0,92588.0,0.01080053]
[1763606155808,0.01079995,92593.0,92588.0,0.01080053]
[1763606156103,0.33379948,92597.0,92592.0,0.01080006]
[1763606156306,0.27889609,92596.0,92591.0,0.01080018]
[1763606156536,0.33379948,92597.0,92591.0,0.01080018]
[1763606156537,0.323,92597.0,92593.0,0.01079995]
[1763606156766,0.2159526,92613.0,92598.0,0.21598556]
[1763606156767,0.01079866,92604.0,92598.0,0.21598556]
[1763606156915,0.01079936,92598.0,92593.0,0.02335]
[1763606157131,0.2267885,92598.0,92593.0,0.03414995]
[1763606157305,0.0107989,92602.0,92595.0,0.21599438]
[1763606157509,0.22676447,92608.0,92601.0,0.02653]
[1763606157694,0.21596888,92606.0,92601.0,0.02653]
[1763606157925,0.21606023,92606.0,92601.0,0.02653]
[1763606158194,0.01088978,92606.0,92603.0,0.01079878]
[1763606158398,0.01088978,92606.0,92601.0,0.06067901]
[1763606158399,0.21597105,92605.0,92601.0,0.06067901]
[1763606158607,0.01079855,92605.0,92601.0,0.06067901]
[1763606158812,0.01079855,92605.0,92601.0,0.06367901]
[1763606159243,0.01079855,92605.0,92601.0,0.06067901]
[1763606159580,0.01079855,92605.0,92604.0,0.01502]
[1763606160166,9.135e-05,92606.0,92604.0,0.25434303]
[1763606160378,9.135e-05,92606.0,92605.0,0.03837]
[1763606160570,9.135e-05,92606.0,92605.0,3.03837]
[1763606161517,9.135e-05,92606.0,92605.0,3.04137]
[1763606161941,0.00309135,92606.0,92605.0,3.04137]
[1763606162522,0.00309135,92606.0,92605.0,3.25734105]
[1763606162725,0.00309135,92606.0,92605.0,3.06830478]
[1763606162926,0.00309135,92606.0,92605.0,3.07993478]
[1763606163136,0.00709135,92606.0,92605.0,3.07993478]
[1763606163341,0.00709135,92606.0,92605.0,3.17993478]
[1763606164098,0.00409135,92606.0,92605.0,3.17993478]
[1763606164554,0.00309135,92606.0,92605.0,3.37993478]
[1763606164760,0.00609135,92606.0,92605.0,3.37993478]
[1763606164964,0.00309135,92606.0,92605.0,3.39156478]
[1763606165374,0.00509135,92606.0,92605.0,3.39156478]
[1763606165675,0.00509135,92606.0,92605.0,0.39156478]
[1763606165907,0.00509135,92606.0,92605.0,3.39156478]
[1763606166134,0.00209135,92606.0,92605.0,3.71456478]
[1763606166267,0.00509135,92606.0,92605.0,3.71456478]
[1763606166716,0.00209135,92606.0,92605.0,3.71456478]
[1763606166934,0.00409135,92606.0,92605.0,3.71456478]
[1763606167140,0.00209135,92606.0,92605.0,3.53546374]
[1763606167479,0.00409135,92606.0,92605.0,3.75143479]
[1763606168024,0.00209135,92606.0,92605.0,3.75143479]
[1763606168236,0.00209135,92606.0,92605.0,3.20083374]
[1763606168237,0.00409135,92606.0,92605.0,3.20083374]
[1763606168572,0.00409135,92606.0,92605.0,3.20447374]
[1763606169713,0.00209135,92606.0,92605.0,3.20447374]
[1763606170078,0.00309135,92606.0,92605.0,3.20447374]
[1763606170287,0.00509135,92606.0,92605.0,3.20447374]
[1763606176839,0.00509135,92606.0,92605.0,3.20083374]
[1763606177036,0.25957007,92606.0,92605.0,0.20083374]
[1763606177245,0.31167256,92606.0,92605.0,0.20083374]
[1763606177624,0.31167256,92606.0,92605.0,0.2]
[1763606177826,0.30667256,92606.0,92605.0,0.2]
[1763606178053,0.30667256,92606.0,92605.0,0.203]
[1763606178487,0.62967256,92606.0,92605.0,0.203]
[1763606179060,9.135e-05,92606.0,92605.0,0.203]
[1763606179270,9.135e-05,92606.0,92605.0,0.206]
[1763606179510,9.135e-05,92606.0,92605.0,0.203]
[1763606179716,0.23181007,92606.0,92605.0,0.202]
[1763606179919,0.23181007,92606.0,92605.0,0.205]
[1763606180291,0.23181007,92606.0,92605.0,0.202]
[1763606180485,0.23181007,92606.0,92605.0,0.105]
[1763606180954,0.01584135,92606.0,92605.0,0.105]
[1763606181151,9.135e-05,92606.0,92605.0,0.205]
[1763606184632,9.135e-05,92606.0,92605.0,3.205]
[1763606185478,9.135e-05,92606.0,92605.0,3.2]
[1763606185749,0.00309135,92606.0,92605.0,3.2]
[1763606185952,0.00709135,92606.0,92605.0,3.2]
[1763606190631,0.22306007,92606.0,92605.0,3.2]
[1763606190836,0.26422007,92606.0,92605.0,3.2]
[1763606191034,0.26422007,92606.0,92605.0,0.2]
[1763606191581,0.00709135,92606.0,92605.0,0.2]
[1763606191779,0.22306007,92606.0,92605.0,0.2]
[1763606191960,0.00709135,92606.0,92605.0,0.2]
[1763606192202,0.22306007,92606.0,92605.0,0.2]
[1763606196651,0.23902007,92606.0,92605.0,0.2]
[1763606196953,0.22306007,92606.0,92605.0,0.2]
[1763606198578,0.00709135,92606.0,92605.0,0.2]
[1763606200108,0.22306007,92606.0,92605.0,0.2]
[1763606200903,0.26317007,92606.0,92605.0,0.2]
[1763606201366,0.23902007,92606.0,92605.0,0.2]
[1763606201709,0.22306007,92606.0,92605.0,0.2]
[1763606204443,0.00709135,92606.0,92605.0,0.2]
[1763606207307,0.00709135,92606.0,92605.0,3.2]
[1763606207889,0.00709135,92606.0,92605.0,3.3]
[1763606208269,0.00709135,92606.0,92605.0,0.3]
[1763606208478,0.00709135,92606.0,92605.0,3.3]
[1763606208903,0.00309135,92606.0,92605.0,3.3]
[1763606209205,0.00609135,92606.0,92605.0,3.3]
[1763606209573,0.00309135,92606.0,92605.0,3.3]
[1763606209792,0.00509135,92606.0,92605.0,3.3]
[1763606217340,0.00509135,92606.0,92605.0,3.623]
[1763606217542,0.00274909,92610.0,92609.0,0.21596173]
[1763606217745,0.00274909,92610.0,92609.0,3.21596173]
[1763606217746,0.00282212,92610.0,92609.0,3.21596173]
[1763606218354,0.00282212,92610.0,92609.0,3.21960173]
[1763606218570,0.00282212,92610.0,92609.0,3.31960173]
[1763606219157,0.00282212,92610.0,92609.0,3.41960173]
[1763606220187,0.00782212,92610.0,92609.0,3.51960173]
[1763606221759,0.00782212,92610.0,92609.0,0.3]
[1763606222008,0.02430212,92610.0,92609.0,0.30364]
[1763606222209,0.00782212,92610.0,92609.0,3.30364]
[1763606222838,0.00582212,92610.0,92609.0,3.30364]
[1763606223003,0.00482212,92610.0,92609.0,3.30364]
[1763606223404,0.00582212,92610.0,92609.0,3.30364]
[1763606223626,0.00282212,92610.0,92609.0,3.30364]
[1763606224479,0.00482212,92610.0,92609.0,3.3]
[1763606224625,0.00482212,92610.0,92609.0,3.30364]
[1763606224826,0.00682212,92610.0,92609.0,3.30364]
[1763606225063,0.00682212,92610.0,92609.0,3.51960173]
[1763606225232,0.00482212,92610.0,92609.0,3.51960173]
[1763606225617,0.00682212,92610.0,92609.0,3.30364]
[1763606225877,0.00482212,92610.0,92609.0,3.30364]
[1763606226278,0.00682212,92610.0,92609.0,3.30364]
[1763606226496,0.00482212,92610.0,92609.0,3.30364]
[1763606226782,0.00482212,92610.0,92609.0,3.10699575]
[1763606227027,0.00282212,92610.0,92609.0,3.10699575]
[1763606227348,0.00582212,92610.0,92609.0,0.10699575]
[1763606227752,0.04719212,92610.0,92609.0,0.20335575]
[1763606228776,0.04519212,92610.0,92609.0,0.20335575]
[1763606229177,0.04519212,92610.0,92609.0,0.10335575]
[1763606229396,0.04719212,92610.0,92609.0,0.10335575]
[1763606229603,0.04419212,92610.0,92609.0,0.10335575]
[1763606229827,0.02130212,92610.0,92609.0,0.10335575]
[1763606230003,0.02430212,92610.0,92609.0,0.10335575]
[1763606230220,0.04719212,92610.0,92609.0,0.10335575]
[1763606230451,0.00782212,92610.0,92609.0,0.10335575]
[1763606230788,0.00582212,92610.0,92609.0,0.10335575]
[1763606231027,0.00882212,92610.0,92609.0,0.10335575]
[1763606232433,0.04819212,92610.0,92609.0,0.10335575]
[1763606235470,0.00882212,92610.0,92609.0,0.10335575]
[1763606236121,0.22478151,92610.0,92609.0,0.10335575]
[1763606236294,0.26115151,92610.0,92609.0,0.10699575]
[1763606236787,0.26015151,92610.0,92609.0,0.10699575]
[1763606236956,0.02130212,92610.0,92609.0,0.10699575]
[1763606237151,0.02330212,92610.0,92609.0,0.10699575]
[1763606237386,0.02130212,92610.0,92609.0,0.10699575]
[1763606237728,0.01930212,92610.0,92609.0,0.10699575]
[1763606238065,0.02230212,92610.0,92609.0,0.32295748]
[1763606238253,0.02230212,92610.0,92609.0,0.10699575]
[1763606238700,0.26115151,92610.0,92609.0,0.10699575]
[1763606238901,0.26415151,92610.0,92609.0,0.10699575]
[1763606239242,0.24126151,92610.0,92609.0,0.10699575]
[1763606240611,0.26415151,92610.0,92609.0,0.10699575]
[1763606241589,0.26415151,92610.0,92609.0,0.10335575]
[1763606250719,0.316254,92610.0,92609.0,0.10335575]
[1763606251150,0.639254,92610.0,92609.0,0.10335575]
[1763606251348,0.639254,92610.0,92609.0,0.05232627]
[1763606251349,0.642894,92610.0,92609.0,0.05232627]
[1763606251838,0.21601771,92585.0,92584.0,0.00364]
[1763606252005,0.26624771,92585.0,92584.0,0.00364]
[1763606252743,0.26624771,92585.0,92584.0,0.10364]
[1763606253078,0.3243502,92585.0,92584.0,0.1]
[1763606253243,0.3243502,92585.0,92584.0,0.2]
[1763606253745,0.3213502,92585.0,92584.0,0.2]
[1763606255068,0.24732771,92585.0,92584.0,0.2]
[1763606255279,0.01576,92585.0,92584.0,0.2]
[1763606255438,0.003,92585.0,92584.0,0.20833]
[1763606255639,0.003,92585.0,92584.0,0.22464]
[1763606256080,0.06290255,92592.0,92588.0,0.01080053]
[1763606256402,0.01080018,92591.0,92586.0,0.01080076]
[1763606256702,0.02492,92608.0,92598.0,0.01079936]
[1763606256900,0.22676905,92606.0,92600.0,0.01079913]
[1763606257115,0.05210249,92603.0,92600.0,0.01079913]
[1763606257401,0.0107989,92602.0,92594.0,0.01079983]
[1763606257706,0.05210249,92603.0,92599.0,0.2267835]
[1763606257905,0.02699754,92601.0,92599.0,0.2267835]
[1763606258106,0.02699754,92601.0,92594.0,0.01079983]
[1763606258306,0.02699754,92601.0,92589.0,0.01080041]
[1763606258307,0.21600838,92589.0,92581.0,0.21602479]
[1763606258515,0.21600838,92589.0,92580.0,0.21080146]
[1763606258717,0.21600838,92589.0,92582.0,0.01080123]
[1763606258913,0.22761838,92589.0,92581.0,0.01080135]
[1763606259115,0.22761838,92589.0,92588.0,0.20364]
[1763606259294,0.26878838,92589.0,92588.0,0.2]
[1763606259475,0.02786,92589.0,92588.0,0.2]
[1763606259679,0.01361,92589.0,92588.0,0.2]
[1763606259888,0.01361,92589.0,92588.0,0.3]
[1763606260293,0.002,92589.0,92588.0,0.3]
[1763606260518,0.004,92589.0,92588.0,0.2]
[1763606261182,0.004,92589.0,92588.0,0.45727071]
[1763606261384,0.004,92589.0,92588.0,0.21631]
[1763606261582,0.004,92589.0,92588.0,0.24126]
[1763606261777,0.004,92589.0,92588.0,3.24126]
[1763606262230,0.004,92589.0,92588.0,3.31631]
[1763606262462,0.22000838,92589.0,92588.0,3.31631]
[1763606262671,0.22000838,92589.0,92588.0,3.3]
[1763606262798,0.22000838,92589.0,92588.0,0.30364]
[1763606263002,0.02025,92589.0,92588.0,0.30364]
[1763606263370,0.004,92589.0,92588.0,0.30364]
[1763606264008,0.004,92589.0,92588.0,0.20364]
[1763606265341,0.22000838,92589.0,92588.0,0.20364]
[1763606266861,0.27278838,92589.0,92588.0,0.2]
[1763606267064,0.32489087,92589.0,92588.0,0.2]
[1763606267275,0.64789087,92589.0,92588.0,0.2]
[1763606267473,0.40696249,92589.0,92588.0,0.2]
[1763606267713,0.57086838,92589.0,92588.0,0.2]
[1763606267930,0.59578838,92589.0,92588.0,0.1]
[1763606269262,0.57086838,92589.0,92588.0,0.1]
[1763606269937,0.59578838,92589.0,92588.0,0.1]
[1763606271763,0.64789087,92589.0,92588.0,0.1]
[1763606273638,0.004,92589.0,92588.0,0.11631]
[1763606274120,0.004,92589.0,92588.0,0.43232071]
[1763606278048,0.004,92589.0,92588.0,0.21631]
[1763606280279,0.004,92589.0,92588.0,0.2]
[1763606280688,0.22000838,92589.0,92588.0,0.2]
[1763606281324,0.26117838,92589.0,92588.0,0.2]
[1763606282148,0.004,92589.0,92588.0,0.2]
[1763606282511,0.004,92589.0,92588.0,0.41601071]
[1763606283565,0.004,92589.0,92588.0,0.2]
[1763606283971,0.22000838,92589.0,92588.0,0.2]
[1763606284850,0.004,92589.0,92588.0,0.2]
[1763606288561,0.09662249,92589.0,92588.0,0.2]
[1763606288931,0.12362353,92589.0,92588.0,0.2]
[1763606289747,0.12162353,92589.0,92588.0,0.1]
[1763606290111,0.12162353,92589.0,92588.0,0.102]
[1763606290738,0.11962353,92589.0,92588.0,0.102]
[1763606292326,0.44262353,92589.0,92588.0,0.102]
[1763606292530,0.41562249,92589.0,92588.0,0.102]
[1763606294504,0.41562249,92589.0,92588.0,0.1]
[1763606298299,0.21609707,92551.0,92548.0,0.00364]
[1763606298553,0.01080567,92544.0,92537.0,0.01080648]
[1763606298853,0.22692124,92544.0,92539.0,3.00364]
[1763606299064,0.01080602,92541.0,92538.0,0.00833]
[1763606299214,0.01080602,92541.0,92540.0,0.00364]
[1763606299414,0.01080602,92541.0,92540.0,0.0040631]
[1763606300043,0.01080602,92541.0,92540.0,0.0004231]
[1763606300300,0.05332602,92541.0,92540.0,0.0004231]
[1763606300508,0.05132602,92541.0,92540.0,0.0004231]
[1763606300878,0.05332602,92541.0,92540.0,0.1004231]
[1763606301077,0.10742851,92541.0,92540.0,0.1004231]
[1763606301280,0.10742851,92541.0,92540.0,0.2004231]
[1763606301505,0.10542851,92541.0,92540.0,0.2004231]
[1763606302207,0.10342851,92541.0,92540.0,0.2004231]
[1763606304329,0.09262249,92541.0,92540.0,0.2004231]
[1763606304519,0.05210249,92545.0,92541.0,0.01080602]
[1763606304720,0.01080578,92543.0,92540.0,0.2004231]
[1763606304879,0.01613,92541.0,92540.0,0.2004231]
[1763606305077,0.02843,92541.0,92540.0,0.2004231]
[1763606306100,0.0123,92541.0,92540.0,0.2004231]
[1763606306907,0.02775,92541.0,92540.0,0.2004231]
[1763606307850,0.0123,92541.0,92540.0,0.2004231]
[1763606308044,0.01080473,92552.0,92547.0,0.01080532]
[1763606308281,0.05210249,92551.0,92547.0,0.01080532]
[1763606308633,0.05210249,92551.0,92548.0,0.0108052]
[1763606309024,0.05210249,92553.0,92549.0,0.22690682]
[1763606309237,0.05210249,92553.0,92550.0,0.01080497]
[1763606309444,0.05210249,92554.0,92552.0,0.21609473]
[1763606309795,0.01163,92564.0,92557.0,0.01080415]
[1763606309995,0.03781248,92562.0,92558.0,0.01080403]
[1763606310144,0.22687757,92561.0,92558.0,0.01080403]
[1763606310325,0.0270095,92560.0,92557.0,0.01080415]
[1763606310526,0.0378133,92560.0,92555.0,0.01080438]
[1763606310927,0.25389133,92560.0,92555.0,0.01080438]
[1763606311166,0.22688183,92560.0,92555.0,0.01080438]
[1763606311363,0.22688183,92560.0,92555.0,0.22689196]
[1763606311364,0.25389133,92560.0,92555.0,0.22689196]
[1763606311893,0.25389133,92560.0,92551.0,0.1]
[1763606311894,0.01080415,92557.0,92551.0,0.1]
[1763606312087,0.21609297,92553.0,92551.0,0.1]
[1763606312288,0.24310452,92553.0,92552.0,0.001]
[1763606312491,0.01080555,92545.0,92542.0,3.0]
[1763606312946,0.22691508,92546.0,92542.0,3.0]
[1763606313282,0.22691508,92546.0,92544.0,3.0]
[1763606313620,0.01080543,92546.0,92543.0,0.1]
[1763606313822,0.01080543,92546.0,92544.0,3.0]
[1763606314000,0.01280543,92546.0,92545.0,0.1]
[1763606314198,0.2309161,92546.0,92545.0,0.1]
[1763606314681,0.2289161,92546.0,92545.0,0.1]
[1763606315018,0.2309161,92546.0,92545.0,0.1]
[1763606315228,0.33261859,92546.0,92545.0,0.1]
[1763606315441,0.33061859,92546.0,92545.0,0.1]
[1763606315646,0.33261859,92546.0,92545.0,0.2]
[1763606316000,0.32861859,92546.0,92545.0,0.2]
[1763606316199,0.33161859,92546.0,92545.0,0.2]
[1763606316402,0.33361859,92546.0,92545.0,0.1]
[1763606316741,0.33061859,92546.0,92545.0,0.1]
[1763606316960,0.32861859,92546.0,92545.0,0.101]
[1763606325059,0.01080462,92553.0,92546.0,0.01080543]
[1763606325239,0.01080485,92551.0,92547.0,0.21610473]
[1763606325846,0.01080497,92550.0,92546.0,0.01080543]
[1763606326063,0.25391871,92550.0,92546.0,0.01080543]
[1763606326267,0.22690629,92550.0,92549.0,0.1]
[1763606326516,0.25391871,92550.0,92549.0,0.1]
[1763606326718,0.26944871,92550.0,92549.0,0.1]
[1763606327040,0.29203871,92550.0,92549.0,0.2]
[1763606327239,0.26502629,92550.0,92549.0,0.2]
[1763606328518,0.26502629,92550.0,92549.0,0.1]
[1763606329025,0.26502629,92550.0,92549.0,0.101]
[1763606330329,0.31712878,92550.0,92549.0,0.101]
[1763606335180,0.31712878,92550.0,92530.0,0.39733911]
[1763606335181,0.01148,92531.0,92530.0,0.38900911]
[1763606335388,0.01148,92531.0,92530.0,0.00373135]
[1763606335896,0.01148,92531.0,92530.0,0.10373135]
[1763606336402,0.01148,92531.0,92530.0,0.20373135]
[1763606337353,0.01348,92531.0,92530.0,0.20373135]
[1763606337554,0.01348,92531.0,92530.0,0.30373135]
[1763606338026,0.01348,92531.0,92530.0,0.51987746]
[1763606338247,0.004,92531.0,92530.0,0.51987746]
[1763606338419,0.004,92531.0,92530.0,0.55309746]
[1763606338766,0.004,92531.0,92530.0,3.55309746]
[1763606339154,0.004,92531.0,92530.0,3.30373135]
[1763606339350,0.004,92531.0,92530.0,0.30373135]
[1763606339538,0.002,92531.0,92530.0,0.30373135]
[1763606339776,0.004,92531.0,92530.0,0.30373135]
[1763606340553,0.004,92531.0,92530.0,0.20373135]
[1763606340751,0.002,92531.0,92530.0,0.20373135]
[1763606341318,0.005,92531.0,92530.0,0.20373135]
[1763606341573,0.003,92531.0,92530.0,0.43642746]
[1763606341770,0.003,92531.0,92530.0,3.45309746]
[1763606341974,0.005,92531.0,92530.0,3.45309746]
[1763606342640,0.002,92531.0,92530.0,3.45309746]
[1763606343119,0.004,92531.0,92530.0,3.45309746]
[1763606343307,0.004,92531.0,92530.0,3.55309746]
[1763606343929,0.002,92531.0,92530.0,3.87609746]
[1763606344372,0.004,92531.0,92530.0,3.87609746]
[1763606346048,0.004,92531.0,92530.0,3.90854025]
[1763606347921,0.004,92531.0,92530.0,0.90854025]
[1763606348199,0.004,92531.0,92530.0,3.90854025]
[1763606351985,0.004,92531.0,92530.0,0.90854025]
[1763606352265,0.004,92531.0,92530.0,3.90854025]
[1763606354154,0.00063685,92531.0,92530.0,3.91418263]
[1763606354507,0.01080228,92573.0,92569.0,0.01080275]
[1763606354732,0.01080228,92573.0,92562.0,3.01080356]
[1763606354733,0.0108031,92566.0,92562.0,3.01080356]
[1763606354920,0.0108031,92566.0,92563.0,0.00834]
[1763606355119,0.01080391,92559.0,92557.0,3.0]
[1763606355320,0.21608072,92558.0,92557.0,3.0]
[1763606355765,0.21612297,92558.0,92557.0,3.0]
[1763606356176,4.225e-05,92558.0,92557.0,3.0]
[1763606356357,0.21612297,92558.0,92557.0,3.0]
[1763606356757,0.21612297,92558.0,92557.0,3.1]
[1763606357195,0.21612297,92558.0,92557.0,0.2]
[1763606357196,0.25831297,92558.0,92557.0,0.2]
[1763606357741,0.26031297,92558.0,92557.0,0.2]
[1763606361135,0.31241546,92558.0,92557.0,0.2]
[1763606362080,0.31041546,92558.0,92557.0,0.2]
[1763606362927,0.30841546,92558.0,92557.0,0.2]
[1763606363103,0.30941546,92558.0,92557.0,0.2]
[1763606363420,0.30941546,92558.0,92557.0,0.201]
[1763606364595,0.63241546,92558.0,92557.0,0.201]
[1763606365024,0.63241546,92558.0,92557.0,0.101]
[1763606367846,0.30941546,92558.0,92557.0,0.101]
[1763606370331,0.26922546,92558.0,92557.0,0.101]
[1763606371138,0.00104225,92558.0,92557.0,0.101]
[1763606371727,0.00104225,92558.0,92557.0,0.31708306]
[1763606372167,0.00104225,92558.0,92557.0,0.41708306]
[1763606373773,0.00104225,92558.0,92557.0,0.44930306]
[1763606373936,0.00104225,92558.0,92557.0,0.43263306]
[1763606374454,0.00104225,92558.0,92557.0,3.44930306]
[1763606375290,0.00104225,92558.0,92557.0,3.43263306]
[1763606375494,0.00104225,92558.0,92557.0,3.43163306]
[1763606375672,0.00304225,92558.0,92557.0,3.43163306]
[1763606375884,0.00504225,92558.0,92557.0,3.43163306]
[1763606376271,0.00504225,92558.0,92557.0,3.41608306]
[1763606376477,0.00504225,92558.0,92557.0,3.43163306]
[1763606379139,0.00504225,92558.0,92557.0,3.41608306]
[1763606379459,0.00504225,92558.0,92557.0,3.2]
[1763606382641,0.00504225,92558.0,92557.0,3.41608306]
[1763606383046,0.00504225,92558.0,92557.0,3.2]
[1763606386804,0.04497225,92558.0,92557.0,0.2]
[1763606387013,0.05628225,92558.0,92557.0,0.2]
[1763606389370,0.01635225,92558.0,92557.0,0.2]
[1763606390162,0.05628225,92558.0,92557.0,0.2]
[1763606390367,0.10838474,92558.0,92557.0,0.2]
[1763606391151,0.10638474,92558.0,92557.0,0.2]
[1763606391386,0.10438474,92558.0,92557.0,0.2]
[1763606391593,0.10438474,92558.0,92557.0,0.201]
[1763606391795,0.10438474,92558.0,92557.0,0.202]
[1763606393883,0.42738474,92558.0,92557.0,0.202]
[1763606394062,0.42738474,92558.0,92557.0,0.102]
[1763606395494,0.40344474,92558.0,92557.0,0.102]
[1763606395668,0.10438474,92558.0,92557.0,0.102]
[1763606395874,0.13139483,92558.0,92557.0,0.102]
[1763606396106,0.10745483,92558.0,92557.0,0.102]
[1763606396415,0.28053546,92558.0,92557.0,0.102]
[1763606396777,0.00104225,92558.0,92557.0,0.102]
[1763606397199,0.00104225,92558.0,92557.0,0.202]
[1763606397878,0.00104225,92558.0,92557.0,0.41808306]
[1763606398711,0.00104225,92558.0,92557.0,0.202]
[1763606398712,0.21712297,92558.0,92557.0,0.202]
[1763606398908,0.23311297,92558.0,92557.0,0.202]
[1763606399108,0.01703225,92558.0,92557.0,0.202]
[1763606399425,0.00104225,92558.0,92557.0,0.202]
[1763606402973,0.00104225,92558.0,92557.0,3.23421]
[1763606404375,0.01658225,92558.0,92557.0,3.202]
[1763606404584,0.21607981,92559.0,92557.0,0.202]
[1763606404785,0.21607981,92559.0,92557.0,0.20209135]
[1763606405202,0.0108038,92560.0,92557.0,0.20209135]
[1763606405412,0.01080345,92563.0,92558.0,0.01080403]
[1763606405790,0.00940581,92564.0,92560.0,0.22687985]
[1763606405988,0.03781085,92566.0,92561.0,0.22687561]
[1763606406241,0.02700775,92566.0,92562.0,0.22687326]
[1763606406458,0.02700746,92567.0,92564.0,0.01080333]
[1763606406679,0.21606205,92566.0,92563.0,0.01080345]
[1763606406895,0.2538729,92566.0,92562.0,0.01080356]
[1763606407114,0.22686515,92566.0,92562.0,0.01080356]
[1763606407332,0.0108031,92566.0,92562.0,0.01080356]
[1763606407541,0.03781044,92567.0,92563.0,0.01080345]
[1763606407745,0.03781044,92567.0,92564.0,0.003]
[1763606408163,0.0108031,92566.0,92563.0,0.1]
[1763606408346,0.22686694,92566.0,92563.0,0.1]
[1763606408730,0.22686694,92566.0,92565.0,0.1]
[1763606409129,0.062905,92571.0,92565.0,0.1]
[1763606409397,0.2268578,92569.0,92566.0,0.0108031]
[1763606409733,0.03119391,92568.0,92566.0,0.00871]
[1763606409951,0.02039105,92568.0,92566.0,0.00871]
[1763606410138,0.0108024,92572.0,92567.0,0.01554]
[1763606410343,0.22685698,92570.0,92567.0,0.01554]
[1763606410902,0.02233205,92575.0,92570.0,0.2]
[1763606411103,0.02233205,92575.0,92571.0,0.01080251]
[1763606411353,0.01080018,92591.0,92577.0,0.21603589]
[1763606411497,0.01080006,92592.0,92585.0,0.21601771]
[1763606411698,0.0108003,92590.0,92585.0,0.22681859]
[1763606411912,0.22680839,92590.0,92585.0,0.01988088]
[1763606412091,0.00257711,92604.0,92591.0,0.01080018]
[1763606412482,0.01079936,92598.0,92594.0,0.01079983]
[1763606412652,0.00042328,92598.0,92597.0,0.01554]
[1763606413402,0.00042328,92598.0,92591.0,0.01080018]
[1763606413403,0.22679947,92593.0,92591.0,3.0]